Cogmind - Beta 15 @@@ ROGUE MODE // 2025.06.17 @ 17:14:13 Player: Envian Result: Destroyed by S-27 Virus with Autogun Performance ------------- Evolutions (4) 2000 Regions Visited (4) 800 Robots Destroyed (32) 160 Value Destroyed (1175) 1175 Prototype IDs (2) 40 Alien Tech Used (0) 0 Bonus (800) 800 TOTAL SCORE: 4975 Bonus ------- Registered with UFD 300 Met Optimus in HQ 500 Cogmind --------- Core Integrity 0/850 Matter 43/300 Energy 99/100 System Corruption 4% Temperature Cool (0) Movement Core (50) Location -6/Factory Parts ------- > --- POWER (1) -------- (None) > --- PROPULSION (4) --- (None) > --- UTILITY (8) ------ Signal Interpreter Target Analyzer A0-MCA's Component Scanner > --- WEAPON (2) ------- (None) > --- INVENTORY (5) ---- Mini Grenade Launcher Datajack DRS Beacon (Ready) Peak State ------------ > --- POWER ------------ Micro Nuclear Core > --- PROPULSION ------- Improved Gravmag System Improved Gravmag System > --- UTILITY ---------- Small Storage Unit Signal Interpreter Target Analyzer Phase Shifter Hacking Suite A0-MCA's Component Scanner > --- WEAPON ----------- Gauss Rifle Magnetic Acceleration Cannon > --- INVENTORY -------- Targeting Computer Mini Grenade Launcher Datajack DRS Beacon [Rating: 46] Favorites ----------- Power Light Fission Core Engine Ion Engine Power Core Light Fission Core Propulsion Wheel Treads Overtuned Medium Treads Leg Flexi-carbon Leg Wheel Wheel Hover Unit Improved Gravmag System Utility Signal Interpreter Device Structural Scanner Storage Small Storage Unit Processor Signal Interpreter Hackware Hacking Suite Protection Improved Light Armor Plating Weapon Particle Cannon Energy Gun Arc Projector Energy Cannon Particle Cannon Ballistic Gun Assault Rifle Ballistic Cannon Light Cannon Build | -11 -10 -10 -9 -6 ------- Run | Yrd Mat Sub Scr Fac Slots Evolved 8 | . . . . 8 Power . | . . . . . Propulsion 2 | . . . . 2 Utility 6 | . . . . 6 Weapon . | . . . . . Parts Attached 38 | 6 5 1 3 23 Power 4 | 1 . . 1 2 Engine 1 | 1 . . . . Core 3 | . . . 1 2 Reactor . | . . . . . Propulsion 8 | 2 . 1 1 4 Treads 1 | . . . 1 . Leg 1 | . . . . 1 Wheel 3 | 2 . 1 . . Hover 3 | . . . . 3 Flight . | . . . . . Utility 13 | 1 1 . . 11 Device 5 | . . . . 5 Storage 1 | 1 . . . . Processor 4 | . 1 . . 3 Hackware 1 | . . . . 1 Protection 2 | . . . . 2 Artifact . | . . . . . Weapon 13 | 2 4 . 1 6 Energy Gun 2 | . . . . 2 Energy Cannon 3 | . 2 . 1 . Ballistic Gun 3 | 2 . . . 1 Ballistic Cannon 5 | . 2 . . 3 Launcher . | . . . . . Special Weapon . | . . . . . Impact Weapon . | . . . . . Slashing Weapon . | . . . . . Piercing Weapon . | . . . . . Special Melee Weapon . | . . . . . Unidentified Prototypes . | . . . . . Parts Lost 27 | . . 2 1 24 Power 3 | . . . . 3 Propulsion 7 | . . 2 1 4 Utility 10 | . . . . 10 Weapon 7 | . . . . 7 Highest Loss Streak 8 | . . 1 1 8 To Critical Strikes . | . . . . . Average Backups 6 | 1 4 8 7 3 Power 1 | . 1 2 1 . Propulsion . | . . . . . Utility 1 | . . 1 1 . Weapon 3 | . 1 4 4 1 Tool/Special . | . . . . . Unused Backups 8 | 2 . . 4 2 Power 1 | . . . 1 . Propulsion 2 | 2 . . . . Utility . | . . . . . Weapon 4 | . . . 3 1 Tool/Special 1 | . . . . 1 Average Slot Usage (%) 82 | . 98 95 84 64 Engine 5 | . 14 14 3 . Core 5 | . . . 10 5 Wheel 12 | . 28 23 12 . Hover 1 | . . . . 4 Device 3 | . . . . 11 Storage 11 | . 14 14 14 5 Processor 14 | . 12 14 14 16 Energy Cannon 17 | . 2 28 28 4 Ballistic Gun 2 | . 14 . . 1 Ballistic Cannon 2 | . 11 . . 4 Peak Build Rating 46 | 6 10 10 21 46 Average Rating 19 | 2 7 9 14 37 On Entrance 8 | . 6 10 9 16 Naked Turns . | . . . . . Heaviest Build 31 | 14 18 18 23 31 Greatest Support 29 | 26 26 26 25 29 Greatest Overweight (x) 9 | . . 1 7 9 Average Overweight (x) 1 | . . . 1 1 Largest Inventory Capacity 8 | 8 8 8 8 8 Average Capacity 7 | 6 8 8 8 7 Most Carried 8 | 5 8 8 8 7 Average Carried 6 | 1 4 7 7 4 Final Capacity 8 | 8 8 8 8 5 Final Carried 8 | . 8 8 8 3 Class Distribution -------------------- 86% | Mutant 13% | Scavenger-Mutant Dominant Class ---------------- Mutant | -10/Materials Mutant | -10/Subcaves Mutant | -9/Scraptown Mutant | -6/Factory Resources | -11 -10 -10 -9 -6 ----------- Run | Yrd Mat Sub Scr Fac Matter Collected 900 | 75 405 45 20 355 Remotely . | . . . . . Salvage Created 1151 | . 280 191 . 680 Parts 65 | . 15 11 . 39 Haulers Intercepted 1 | . 1 . . . Recyclers Shooed 1 | . . . . 1 Parts Field Recycled . | . . . . . Retrieved Matter . | . . . . . Parts Self-Destructed 7 | . . 7 . . Prevented . | . . . . . Kills | -11 -10 -10 -9 -6 ------- Run | Yrd Mat Sub Scr Fac Combat Hostiles Destroyed 24 | . 6 4 . 14 Guns 7 | . 6 . . 1 Cannons 16 | . . 3 . 13 Classes Destroyed 10 | . 5 1 . 4 Worker 1 | . 1 . . . Builder 5 | . 1 . . 4 Hauler 1 | . 1 . . . Operator 1 | . . . . 1 Swarmer 3 | . 3 . . . Grunt 10 | . 3 . . 7 Sentry 2 | . . . . 2 Hunter 3 | . . . . 3 Programmer 2 | . . . . 2 Subdweller 4 | . . 4 . . Best Kill Streak 5 | . 4 4 . 5 Combat Bots Only 4 | . 4 4 . 3 Max Kills in Single Turn 2 | . 1 1 . 2 Gunslinging . | . . . . . Exploded . | . . . . . Melee . | . . . . . Uniques/NPCs Destroyed . | . . . . . Combat | -11 -10 -10 -9 -6 -------- Run | Yrd Mat Sub Scr Fac Hostile Shots Fired 309 | . 49 9 9 242 Missed 99 | . 11 3 2 83 Hits 210 | . 38 6 7 159 Projectile 210 | . 38 6 7 159 AOE 4 | . . . . 4 Critical Strikes 5 | . 2 . 1 2 Damage Taken 3381 | . 374 170 97 2740 Core 1074 | . 110 100 8 856 Absorbed by Shields . | . . . . . Ignored by Resistances 8 | . . . . 8 Regen/Repaired (Parts) 122 | . . . 122 . Core Remaining (%) 56 | 100 . . 12 . Volleys Fired 116 | . 35 16 . 65 Largest 2 | . 2 2 . 2 Hottest 136 | . 40 136 . 135 Shots Fired 222 | . 70 32 . 120 Gun 97 | . 70 . . 27 Cannon 125 | . . 32 . 93 Launcher . | . . . . . Special . | . . . . . Kinetic 148 | . 70 . . 78 Thermal 67 | . . 32 . 35 Explosive . | . . . . . Electromagnetic 7 | . . . . 7 Robot Hit Streak 9 | . 8 5 . 9 Robot Miss Streak 6 | . 4 3 . 6 Penetration Max 1 | . . . . 1 Secondary Targets . | . . . . . Shots Hit Robots 133 | . 40 17 . 76 Core Hits 76 | . 14 6 . 56 Critical Kills 1 | . . 1 . . Critical Parts Destroyed 2 | . . . . 2 Critical Strikes 5 | . . 1 . 4 Meltdown 1 | . . 1 . . Destroy 2 | . . . . 2 Blast 2 | . . . . 2 Melee Attacks . | . . . . . Impact . | . . . . . Slashing . | . . . . . Piercing . | . . . . . Sneak Attacks . | . . . . . Combat Hostiles . | . . . . . Follow-up Attacks . | . . . . . Damage Inflicted 2652 | . 497 332 . 1823 Guns 731 | . 497 . . 234 Cannons 1907 | . . 332 . 1575 Explosions . | . . . . . Melee . | . . . . . Ramming 14 | . . . . 14 Kinetic 1775 | . 497 . . 1278 Thermal 841 | . . 332 . 509 Explosive . | . . . . . Electromagnetic 22 | . . . . 22 Impact . | . . . . . Slashing . | . . . . . Piercing . | . . . . . Highest Corruption 4 | . . . . 4 Average Corruption 2 | . . . . 2 Corruption Purged . | . . . . . Corruption Blocked . | . . . . . Effects 13 | . . . . 13 Message Errors 3 | . . . . 3 Matter Fused 5 | . . . . 5 Heat Flow Errors 1 | . . . . 1 Data Loss (minor) 1 | . . . . 1 Misfires 3 | . . . . 3 Overload Shots . | . . . . . Overflow Damage 114 | . . . . 114 Projectiles 18 | . . . . 18 Explosions 96 | . . . . 96 Melee . | . . . . . Knockbacks 21 | . . . . 21 Impact . | . . . . . Kinetic 20 | . . . . 20 Secondary 1 | . . . . 1 Self-Inflicted Damage 292 | . . . . 292 Shots 3 | . . . . 3 Rammed 2 | . . . . 2 Targets Rammed 2 | . . . . 2 Kicked . | . . . . . Crushed . | . . . . . Highest Temperature 264 | . 20 105 . 264 Average Temperature 50 | . 7 42 . 59 Received Heat Transfer 567 | . 120 54 36 357 Siege Activations . | . . . . . Martial Activations . | . . . . . Shielding Activations . | . . . . . Robots Disrupted . | . . . . . Combat Hostiles . | . . . . . Robots Corrupted . | . . . . . Combat Hostiles . | . . . . . Parts Fried . | . . . . . Impact Corruptions . | . . . . . Robots Melted 1 | . . 1 . . Combat Hostiles 1 | . . 1 . . Parts Melted 5 | . . 4 . 1 Heat Transferred 1542 | . . 592 . 950 Parts Sabotaged . | . . . . . Parts Stolen . | . . . . . Parts Stripped . | . . . . . Power Chain Reactions . | . . . . . Alert | -11 -10 -10 -9 -6 ------- Run | Yrd Mat Sub Scr Fac Maximum Alert Level . | . . . . . Low Security (%) 100 | 100 100 . . 100 Level 1 . | . . . . . Level 2 . | . . . . . Level 3 . | . . . . . Level 4 . | . . . . . Level 5 . | . . . . . High Security . | . . . . . Max Security . | . . . . . Peak Influence 163 | . 91 . . 163 Initial . | . . . . . Average 43 | . 24 . . 55 Influence Increases 663 | . 168 . . 495 Destroy 0b10 Robot/C 400 | . 120 . . 280 Destroy 0b10 Robot/NC 40 | . 15 . . 25 Destroy Leader 112 | . 22 . . 90 Successful Hack 10 | . 10 . . . Disable Machine 75 | . . . . 75 Destroy Structure 26 | . 1 . . 25 Influence Decreases 654 | . 168 . . 486 Time Decay 434 | . 168 . . 266 Lost Part 220 | . . . . 220 Squads Dispatched 8 | . . . . 8 Investigation 2 | . . . . 2 Extermination 2 | . . . . 2 Reinforcement 2 | . . . . 2 Assault . | . . . . . Garrison 2 | . . . . 2 Intercept . | . . . . . Searches Triggered . | . . . . . Construction Impeded 1 | . . . . 1 Haulers Reinforced . | . . . . . Active Scanning Responses . | . . . . . Cargo Convoy Interrupts . | . . . . . Stealth | -11 -10 -10 -9 -6 --------- Run | Yrd Mat Sub Scr Fac Distress Signals . | . . . . . Communications Jammed . | . . . . . Distress Signals . | . . . . . Times Spotted 45 | . 11 4 4 26 Peak Tracking Total 10 | . 3 2 4 10 Tactical Retreats . | . . . . . Traps | -11 -10 -10 -9 -6 ------- Run | Yrd Mat Sub Scr Fac Traps Triggered 1 | . . . . 1 Indirectly . | . . . . . Trap Hack Attempts . | . . . . . Triggered . | . . . . . Disarmed . | . . . . . Reprogrammed . | . . . . . Reused . | . . . . . Traps Extracted . | . . . . . Installed . | . . . . . Triggered . | . . . . . Machines | -11 -10 -10 -9 -6 ---------- Run | Yrd Mat Sub Scr Fac Machines Disabled 5 | . . . . 5 Max in Single Turn 3 | . . . . 3 Garrison Access 1 | . . . . 1 Machines Repaired . | . . . . . Machines Dismantled . | . . . . . Machines Sabotaged . | . . . . . Overloaded Fab Kills . | . . . . . Hacking | -11 -10 -10 -9 -6 --------- Run | Yrd Mat Sub Scr Fac Machines Accessed 16 | . 6 . 7 3 Terminals 7 | . 6 . . 1 Fabricators . | . . . . . Repair Stations . | . . . . . Recycling Units 1 | . . . . 1 Scanalyzers . | . . . . . Garrison Access 1 | . . . . 1 Total Hacks 81 | . 19 . 55 7 Successful 62 | . 6 . 55 1 Failed 19 | . 13 . . 6 Catastrophic 5 | . 2 . . 3 Database Lockouts . | . . . . . Manual 22 | . 19 . . 3 Terminals 21 | . 19 . . 2 Fabricators . | . . . . . Repair Stations . | . . . . . Recycling Units 1 | . . . . 1 Scanalyzers . | . . . . . Garrison Access 4 | . . . . 4 Terminal Hacks 55 | . . . 55 . Record 55 | . . . 55 . Fabricator Hacks . | . . . . . Repair Station Hacks . | . . . . . Recycling Unit Hacks . | . . . . . Scanalyzer . | . . . . . Garrison Access Hacks 1 | . . . . 1 Seal Access 1 | . . . . 1 Unauthorized Hacks 6 | . 6 . . . Terminals 6 | . 6 . . . Botnet 6 | . 6 . . . Fabricators . | . . . . . Repair Stations . | . . . . . Recycling Units . | . . . . . Scanalyzers . | . . . . . Garrison Access . | . . . . . Data Cores Recovered . | . . . . . Used . | . . . . . Hacking Detections 9 | . 6 . . 3 Full Trace Events 3 | . 2 . . 1 Feedback Events 1 | . . . . 1 Corruption 1 | . . . . 1 Feedback Blocked . | . . . . . Robot Schematics Acquired . | . . . . . Robots Built . | . . . . . Authchips . | . . . . . Time . | . . . . . Total Robot Build Rating . | . . . . . Part Schematics Acquired . | . . . . . Parts Built . | . . . . . Authchips . | . . . . . Time . | . . . . . Total Part Build Rating . | . . . . . Parts Repaired . | . . . . . Time . | . . . . . Parts Recycled . | . . . . . Recycled Matter . | . . . . . Retrieved Matter . | . . . . . Retrieved Components . | . . . . . Parts Scanalyzed . | . . . . . Part Schematics Acquired . | . . . . . Parts Damaged . | . . . . . Bothacking | -11 -10 -10 -9 -6 ------------ Run | Yrd Mat Sub Scr Fac Used RIF Installer . | . . . . . Robots Hacked . | . . . . . Non-combat . | . . . . . Combat . | . . . . . Robot Hacks Applied . | . . . . . Relay Couplers Released . | . . . . . Fabnet Peak Effective % . | . . . . . Robots Rewired . | . . . . . Allies Hacked . | . . . . . Hacks Repelled . | . . . . . Allies | -11 -10 -10 -9 -6 -------- Run | Yrd Mat Sub Scr Fac Total Allies . | . . . . . Largest Group . | . . . . . Highest-Rated Group . | . . . . . Highest-Rated Ally . | . . . . . Total Orders . | . . . . . Ally Attacks . | . . . . . Total Damage . | . . . . . Kills . | . . . . . Allies Corrupted . | . . . . . Allies Melted . | . . . . . Intel | -11 -10 -10 -9 -6 ------- Run | Yrd Mat Sub Scr Fac Active Infowar (turns) 692 | . . . . 692 Structural 692 | . . . . 692 Robot Analysis Total . | . . . . . Derelict Logs Recovered 2 | . . 1 1 . Drone Launches . | . . . . . Drone Recoveries . | . . . . . Exploration | -11 -10 -10 -9 -6 ------------- Run | Yrd Mat Sub Scr Fac Turns Passed 3766 | 41 547 481 1633 1064 Spaces Moved 2875 | 40 461 459 1432 483 Core 130 | 23 . . 23 84 Treads 43 | . . . 43 . Legs 120 | . . . . 120 Wheels 2303 | 17 461 459 1366 . Hover 279 | . . . . 279 Flight . | . . . . . Fastest Speed 50 | 50 90 90 95 50 Average Speed 113 | 67 90 91 112 161 Slowest Speed 500 | 90 90 95 400 500 Overloaded Moves . | . . . . . Propulsion Burnouts . | . . . . . Robots Hopped . | . . . . . Potential Cave-ins . | . . . . . Cave-ins Triggered . | . . . . . Exploration Rate (%) 44 | 4 81 39 82 14 Regions Visited 4 Branch Regions 2 Pre-discovered Areas 1 | . . 1 . . Known Exits Taken 3 | . 1 1 1 . Unknown Exits Taken 1 | 1 . . . . Scrap Searched 7 | . . . 7 . Spaces Dug . | . . . . . Terrain Destroyed 30 | . . . . 30 Melee . | . . . . . Projectile 6 | . . . . 6 AOE 24 | . . . . 24 Terrain Rammed . | . . . . . Walls Destroyed . | . . . . . Machines Disabled . | . . . . . Actions | -11 -10 -10 -9 -6 --------- Run | Yrd Mat Sub Scr Fac Total 3174 | 54 522 487 1460 651 Wait 73 | . 5 11 . 57 Move 2871 | 39 460 458 1431 483 Hop . | . . . . . Pick Up 51 | 7 13 1 11 19 Fast Attach 2 | 1 . . 1 . Attach 32 | 5 1 1 2 23 Detach . | . . . . . Swap 5 | . 4 . 1 . Drop 20 | 2 4 . 12 2 Fire 116 | . 35 16 . 65 Melee . | . . . . . Ram 2 | . . . . 2 Kick . | . . . . . Crush . | . . . . . Escape Stasis . | . . . . . Rewire 2 | . . . 2 . Trap . | . . . . . Miscellaneous . | . . . . . Route ------- -11/Scrapyard -10/Materials (discovered 4 exits: [*Mat] / [*Min x2] / *Sub) -10/Subcaves (discovered 2 exits: *Mat / *Scr) -9/Scraptown (discovered 2 exits: *Fac x2) -6/Factory History --------- Turn | Location | Event 7 | -11/Scrapyard | Discovered new exit (range 16) 42 | -11/Scrapyard | Entered Materials 310 | -10/Materials | Build established: Mutant 335 | -10/Materials | Discovered new exit (range 6) 454 | -10/Materials | Discovered new exit (range 16) 562 | -10/Materials | Discovered new exit (range 5) 584 | -10/Materials | Discovered new exit (range 6) 588 | -10/Materials | Identified exit to Subcaves 589 | -10/Materials | Entered Subcaves 590 | -10/Subcaves | Approached by a straggling Scientist 727 | -10/Subcaves | Discovered new exit (range 5) 730 | -10/Subcaves | Identified exit to Materials 930 | -10/Subcaves | Core integrity fell below 50% 934 | -10/Subcaves | Core integrity fell below 20% 970 | -10/Subcaves | Learned location of Zion (-6) 970 | -10/Subcaves | Met a Zionite searching for "candidates" 1031 | -10/Subcaves | A swath of the cavern ceiling suddenly collapsed 1067 | -10/Subcaves | Scientist uncovered a shortcut to Scraptown 1069 | -10/Subcaves | Identified exit to Scraptown 1070 | -10/Subcaves | Entered Scraptown 1210 | -9/Scraptown | Visited IN-MT5's Study 1413 | -9/Scraptown | Visited Fellowship of the Rings 1481 | -9/Scraptown | Visited Bundlers 1571 | -9/Scraptown | Visited CR-KLE's Repair Center 1579 | -9/Scraptown | CR-KLE repaired 4 parts 1599 | -9/Scraptown | Heard Great Nut preacher, LISTEN AND RECITE! 1623 | -9/Scraptown | Scanned Subdweller tech in exchange for log data 1626 | -9/Scraptown | Learned Factory terminal intel 1637 | -9/Scraptown | Discovered new exit (range 11) 1648 | -9/Scraptown | Identified exit to Factory 2023 | -9/Scraptown | Visited Assassins FH 2050 | -9/Scraptown | Visited Cyclists 2089 | -9/Scraptown | Visited UFD Registry 2099 | -9/Scraptown | Visited TADAMA 2127 | -9/Scraptown | Registered with UFD as "Quantumbay" 2157 | -9/Scraptown | Entered Cyclist Reading Room 2237 | -9/Scraptown | Visited Modified Component R&D 2335 | -9/Scraptown | Received an X-ray algorithm 2434 | -9/Scraptown | Visited A0-MCA Data Center 2441 | -9/Scraptown | Given a C rating by A0-MCA 2447 | -9/Scraptown | Found A0-MCA's Component Scanner 2472 | -9/Scraptown | Visited Science Testing Area 2494 | -9/Scraptown | Visited LU-1G1's Boring Crew 2529 | -9/Scraptown | Met Optimus 2529 | -9/Scraptown | Accepted into 0bPrime 2588 | -9/Scraptown | Visited Derelict Rescue Squad 2595 | -9/Scraptown | Found DRS Beacon 2680 | -9/Scraptown | Civil war broke out across Scraptown 2697 | -9/Scraptown | Discovered exit to Factory (range 5) 2703 | -9/Scraptown | Entered Factory 2703 | -6/Factory | Evolved 8 slots: Propulsion x2, Utility x6 2704 | -6/Factory | Loaded intel: 26 terminal locations 3402 | -6/Factory | Core integrity fell below 50% 3432 | -6/Factory | Lost 7 parts (1p3u3w) 3550 | -6/Factory | Garrison activated, responded to threat 3742 | -6/Factory | Core integrity fell below 20% 3767 | -6/Factory | Destroyed by S-27 Virus with Autogun Last Messages --------------- 03716_ Mic. Nuclear Core destroyed. 03717_ TKI&FX=P9 T55&0V U1VUPWBYTQ =Z3J>AWJ%TJ 03719_ K-01 Serf cleans the Construction Platform. 03726_ Slug penetrates Wall. 03729_ Connecting with Garrison Access... >>Seal Access door sealed. 03730_ Slug penetrates Garrison Access. 03732_ Imp. Light Armor Plating destroyed. 03735_ Penetrated by Slug. 03735_ Dropped DRS Beacon. 03736_ Acquired DRS Beacon. 03737_ Magnetic Acceleration Cannon destroyed. 03738_ K-01 Serf cleans the Subcomponent Replicator. 03749_ Imp. Gravmag System destroyed. 03750_ Targeting Computer destroyed. 03758_ Gauss Rifle destroyed. 03763_ Slammed into T-07 Excavator. 03766_ Hacking Suite destroyed. [Achievement: This Is Interesting...] Map ----- +----------------------------------------------------+ | | | | | | | | | | | | | | | | | | | | | | | ?????????????????????????????????????????????????? | | ?????????????????????????????????????????????????? | | ?????????????????????????????????????????????????? | | ???????????????????????#######???###?????????????? | | ?????????????????????? #?????????????? | | ????????????????????? *#?????????????? | | ????????????????????? #?????????????? | | ???????????????????+? """"" """"" #?????????????? | | ?????????????""?""?# """"" """"" #?????????????? | | ?????????????""T""?# """ """ #?????????????? | | ??????????????"""??# #?????????????? | | ???????????????????# """"" #?????????????? | | ?????????????####### """"" #?????????????? | | ?????????? """ #?????????????? | | ?????????? @ #?##+###??????? | | ?????????? s * ## #??????? | | ?????????? s T" #??????? | | ??????????? ! s " #??????? | | ???????????###### s ######## s k #??????? | | ????????????????# ???????## ###t #??????? | | ????????????????# ????????# #??? ##??????? | | ????????????????# #####?????????# #???? #???????? | | ????????????????#???????????????# #??? #???????? | | ????????????????????T???????????# #??? #???????? | | ????????????????????????????????# #??? ####### | | ????????????????????????????????# #??? | | ???????????????????????##########/###? | | ???????????????????????# ## | | ???????????????????????# ## | | ???????????????????????# """ """ ## | | ???????????????????????# """ """ # ^ | | ????????????????????????? """ """ # | | ???????????????????????# + """" """" " | | ???????????????????????# """ """ # ""F" """" " | | ??????????????????????????""" """ # "" """" " | | ???????????????????????????"" """ # """" " | | ?????????????????????????? # """" " | | ??????????????????????????? # """" " | | ??????????????????????????? # """" " | +----------------------------------------------------+ Best States ------------- Heat Dissipation 51 Energy Generation 18 Energy Capacity 250 Matter Stores 300 Matter Capacity 300 Sight Range 16 Terrain Scan Density 10 Armor Coverage 150 Resistance: EM 25 Phase Shifting 5 Evasion (%) 54 Targeting Accuracy 5 Target Analysis 5 Recoil Reduction 1 Particle Charging 20 Offensive Hacking 10 Item Schematics ----------------- None Robot Schematics ------------------ None Fabricated ------------ Nothing Repaired ---------- Nothing Alien Tech Used ----------------- None Achievements -------------- This Is Interesting... Challenges ------------ None Game ------ Seed AntimatterMiniShovel Manual? 0 Play Time 01:08:03 Cumulative 37.7 hours Start 2025.06.17 @ 15:01:24 End 2025.06.17 @ 17:14:13 Sessions 1 Manual Loads 0 Difficulty Rogue Special Mode None Game No. 47 Rogue 47 Adventurer 0 Explorer 0 Win Type - Total 1 Types 1/0/0/0/0/0/0/0/0/0 Lore% 26 Gallery% 28 Achievement% 32 Wizard Run 0 Options --------- Layout 0 ASCII 0 Keyboard 0 Movement Numpad Keybinds 0 Fullscreen 1 Font 24/Smallcaps Map View 76x50 Zoom Use 0% Tactical HUD 1 Map Filters NONE Filters NONE Steam 1 RUN: d40e0fbc-3b9d-438d-938d-4a38a154e383